fUSD/lending_fUSD_20250319
["ID","MTS","AMOUNT","RATE_DAILY","PERIOD"]
[356401184,1742406644432,-500.0,0.00029778,2]
[356401185,1742406644441,-500.0,0.00029778,2]
[356401186,1742406644451,-1108.63,0.00029778,2]
[356401187,1742406644460,-897.81,0.00029778,2]
[356401188,1742406644469,-500.0,0.00029778,2]
[356401189,1742406644479,-500.0,0.00029778,2]
[356401190,1742406644489,-500.0,0.00029778,2]
[356401191,1742406644499,-500.0,0.00029778,2]
[356401192,1742406644511,-500.0,0.00029778,2]
[356401193,1742406644520,-500.0,0.00029778,2]
[356401194,1742406644529,-500.0,0.00029778,2]
[356401195,1742406644538,-500.0,0.00029778,2]
[356401196,1742406644549,-632.45,0.00029778,2]
[356401197,1742406644558,-560.47,0.00029778,2]
[356401198,1742406644568,-500.0,0.00029778,2]
[356401199,1742406644579,-565.27,0.00029778,2]
[356401200,1742406644589,-500.0,0.00029778,2]
[356401201,1742406644599,-500.0,0.00029778,2]
[356401202,1742406644608,-929.01,0.00029778,2]
[356401203,1742406644618,-500.0,0.00029778,2]
[356401204,1742406644628,-1218.75,0.00029778,2]
[356401205,1742406644637,-684.96,0.00029778,2]
[356401206,1742406644646,-500.0,0.00029778,2]
[356401207,1742406644655,-500.0,0.00029778,2]
[356401208,1742406644664,-525.21187771,0.00029778,2]
[356401209,1742406644674,-500.0,0.00029778,2]
[356401210,1742406644683,-500.0,0.00029778,2]
[356401211,1742406644693,-500.0,0.00029778,2]
[356401212,1742406644702,-500.0,0.00029778,2]
[356401213,1742406644712,-500.0,0.00029778,2]
[356401214,1742406644721,-500.0,0.00029778,2]
[356401215,1742406644731,-500.0,0.00029778,2]
[356401216,1742406644740,-631.26,0.00029778,2]
[356401217,1742406644749,-500.0,0.00029778,2]
[356401218,1742406644759,-500.0,0.00029778,2]
[356401219,1742406644768,-506.7105573,0.00029778,2]
[356401220,1742406644778,-521.38206689,0.00029778,2]
[356401221,1742406644788,-530.27,0.00029778,2]
[356401222,1742406644798,-500.0,0.00029778,2]
[356401223,1742406644808,-500.0,0.00029778,2]
[356401224,1742406644817,-1046.3,0.00029778,2]
[356401225,1742406644826,-500.0,0.00029778,2]
[356401226,1742406644836,-857.67,0.00029778,2]
[356401227,1742406644846,-1253.65,0.00029778,2]
[356401228,1742406644855,-500.0,0.00029778,2]
[356401229,1742406644865,-500.0,0.00029778,2]
[356401230,1742406644874,-500.0,0.00029778,2]
[356401231,1742406644884,-636.37,0.00029778,2]
[356401232,1742406644893,-688.82,0.00029778,2]
[356401233,1742406644903,-500.0,0.00029778,2]
[356401234,1742406644912,-500.0,0.00029778,2]
[356401235,1742406644922,-500.0,0.00029778,2]
[356401236,1742406644931,-500.0,0.00029778,2]
[356401237,1742406644940,-500.0,0.00029778,2]
[356401238,1742406644950,-807.41,0.00029778,2]
[356401239,1742406644959,-500.0,0.00029778,2]
[356401240,1742406644968,-500.0,0.00029778,2]
[356401241,1742406644978,-500.0,0.00029778,2]
[356401242,1742406644987,-1147.9,0.00029778,2]
[356401243,1742406644997,-500.0,0.00029778,2]
[356401244,1742406645006,-500.0,0.00029778,2]
[356401245,1742406645015,-500.0,0.00029778,2]
[356401246,1742406645025,-678.77,0.00029778,2]
[356401247,1742406645034,-500.0,0.00029778,2]
[356401248,1742406645044,-913.03,0.00029778,2]
[356401249,1742406645053,-1112.81,0.00029778,2]
[356401250,1742406645063,-562.6,0.00029778,2]
[356401251,1742406645074,-500.0,0.00029778,2]
[356401252,1742406645084,-585.77,0.00029778,2]
[356401253,1742406645095,-500.0,0.00029778,2]
[356401254,1742406645105,-500.0,0.00029778,2]
[356401255,1742406645115,-500.0,0.00029778,2]
[356401256,1742406645125,-500.0,0.00029778,2]
[356401257,1742406645135,-500.0,0.00029778,2]
[356401258,1742406645145,-827.94,0.00029778,2]
[356401259,1742406645155,-500.0,0.00029778,2]
[356401260,1742406645164,-735.17,0.00029778,2]
[356401261,1742406645174,-572.91,0.00029778,2]
[356401262,1742406645184,-1026.76,0.00029778,2]
[356401263,1742406645193,-500.0,0.00029778,2]
[356401264,1742406645203,-500.0,0.00029778,2]
[356401265,1742406645212,-867.34,0.00029778,2]
[356401266,1742406645222,-500.0,0.00029778,2]
[356401267,1742406645232,-607.98,0.00029778,2]
[356401268,1742406645242,-500.0,0.00029778,2]
[356401269,1742406645251,-500.0,0.00029778,2]
[356401270,1742406645261,-633.12,0.00029778,2]
[356401271,1742406645271,-843.35,0.00029778,2]
[356401272,1742406645280,-500.0,0.00029778,2]
[356401273,1742406645292,-923.04,0.00029778,2]
[356401274,1742406645301,-989.59,0.00029778,2]
[356401275,1742406645311,-61.23835327,0.00029778,2]
[356401299,1742406646427,-438.76164673,0.00029778,2]
[356401301,1742406646436,-1105.11889962,0.00029778,2]
[356401336,1742406647088,-160.01110038,0.00029778,2]
[356401337,1742406647097,-166.19689962,0.00029778,2]
[356401338,1742406647109,-333.80310038,0.00029778,2]
[356401339,1742406647118,-500.0,0.00029778,2]
[356401340,1742406647128,-500.0,0.00029778,2]
[356401341,1742406647138,-672.54,0.00029778,2]
[356401342,1742406647148,-500.0,0.00029778,2]
[356401343,1742406647158,-975.77,0.00029778,2]
[356401344,1742406647167,-957.87,0.00029778,2]
[356401345,1742406647176,-1044.97,0.00029778,2]
[356401346,1742406647185,-500.0,0.00029778,2]
[356401347,1742406647195,-857.94,0.00029778,2]
[356401348,1742406647204,-1071.78,0.00029778,2]
[356401349,1742406647214,-1231.8,0.00029778,2]
[356401350,1742406647223,-500.0,0.00029778,2]
[356401351,1742406647232,-315.86818691,0.00029778,2]
[356401352,1742406647242,-605.07,0.00029778,2]
[356401353,1742406647251,-759.05,0.00029778,2]
[356401354,1742406647260,-500.0,0.00029778,2]
[356401355,1742406647270,-500.0,0.00029778,2]
[356401356,1742406647279,-500.0,0.00029778,2]
[356401357,1742406647288,-500.0,0.00029778,2]
[356401358,1742406647300,-500.0,0.00029778,2]
[356401359,1742406647309,-500.0,0.00029778,2]
[356401360,1742406647318,-1135.6,0.00029778,2]
[356401361,1742406647327,-500.0,0.00029778,2]
[356401362,1742406647336,-500.0,0.00029778,2]
[356401363,1742406647346,-600.62,0.00029778,2]
[356401364,1742406647355,-199.87963541,0.00029778,2]
[356401365,1742406647364,-692.82,0.00029778,2]
[356401366,1742406647374,-720.08,0.00029778,2]
[356401367,1742406647383,-549.88,0.00029778,2]
[356401368,1742406647393,-906.6030605,0.00029778,2]
[356401369,1742406647417,-57.2769395,0.00029778,2]
[356401370,1742406647427,-500.0,0.00029778,2]
[356401371,1742406647437,-500.0,0.00029778,2]
[356401372,1742406647446,-500.0,0.00029778,2]
[356401373,1742406647456,-500.0,0.00029778,2]
[356401374,1742406647466,-527.61,0.00029778,2]
[356401375,1742406647476,-1431.59,0.00029778,2]
[356401376,1742406647486,-500.0,0.00029778,2]
[356401377,1742406647495,-500.0,0.00029778,2]
[356401378,1742406647508,-150.0,0.00029784,2]
[356401379,1742406647518,-150.0,0.00029784,2]
[356401380,1742406647527,-150.0,0.00029786,2]
[356401381,1742406647539,-150.0,0.00029789,2]
[356401382,1742406647552,-150.0,0.0002979,2]
[356401383,1742406647562,-150.0,0.0002979,2]
[356401384,1742406647572,-150.0,0.00029791,2]
[356401385,1742406647583,-150.0,0.00029794,2]
[356401386,1742406647593,-150.0,0.00029794,2]
[356401387,1742406647604,-150.0,0.00029796,2]
[356401388,1742406647614,-150.0,0.00029798,2]
[356401389,1742406647624,-751.13110864,0.000298,2]
[356401390,1742406647633,-169.5527517,0.00029801,2]
[356401391,1742406647642,-150.0,0.00029804,2]
[356401392,1742406647652,-150.0,0.00029809,2]
[356401393,1742406647662,-150.0,0.00029811,2]
[356401394,1742406647672,-150.0,0.00029814,2]
[356401395,1742406647682,-150.0,0.00029814,2]
[356401396,1742406647692,-150.0,0.00029817,2]
[356401397,1742406647702,-150.0,0.00029819,2]
[356401398,1742406647712,-150.0,0.00029824,2]
[356401399,1742406647722,-150.0,0.00029828,2]
[356401400,1742406647732,-150.0,0.00029829,2]
[356401401,1742406647742,-150.0,0.0002983,2]
[356401402,1742406647752,-150.0,0.00029831,2]
[356401403,1742406647762,-150.0,0.00029832,2]
[356401404,1742406647772,-150.0,0.00029833,2]
[356401405,1742406647784,-150.0,0.00029834,2]
[356401406,1742406647797,-150.0,0.00029836,2]
[356401407,1742406647808,-150.0,0.00029836,2]
[356401408,1742406647819,-125.24596826,0.00029837,2]
[356401409,1742406647838,-24.75403174,0.00029837,2]
[356401410,1742406647851,-150.0,0.00029837,2]
[356401411,1742406647861,-150.0,0.00029842,2]
[356401412,1742406647871,-150.0,0.00029843,2]
[356401413,1742406647881,-150.0,0.00029844,2]
[356401414,1742406647891,-150.0,0.0002985,2]
[356401415,1742406647902,-150.0,0.0002985,2]
[356401416,1742406647912,-150.0,0.00029852,2]
[356401417,1742406647922,-150.0,0.00029853,2]
[356401418,1742406647933,-150.0,0.00029853,2]
[356401419,1742406647943,-150.0,0.00029854,2]
[356401420,1742406647954,-150.0,0.00029854,2]
[356401421,1742406647964,-150.0,0.00029856,2]
[356401422,1742406647974,-150.0,0.00029856,2]
[356401423,1742406647984,-150.0,0.00029859,2]
[356401424,1742406647994,-150.0,0.00029862,2]
[356401425,1742406648004,-150.0,0.00029863,2]
[356401426,1742406648014,-150.0,0.00029866,2]
[356401427,1742406648024,-150.0,0.00029867,2]
[356401428,1742406648034,-150.0,0.00029868,2]
[356401429,1742406648045,-1326.08596826,0.0002987,3]
[356401430,1742406648114,-251.04135499,0.0002987,3]
[356401451,1742407832032,-3871.40000003,0.000228,5]
[356401452,1742407832087,-481.36,0.000228,5]
[356401453,1742407832099,-1197.23999997,0.000228,5]
[356401454,1742407832109,-350.0,0.0002519,2]
[356401455,1742407832118,-350.0,0.0002552,2]
[356401456,1742407832128,-350.0,0.0002574,2]
[356401457,1742407832137,-219.83632294,0.000259,4]
[356401458,1742407832147,-577.44,0.00026814,2]
[356401459,1742407832157,-254.84,0.00026849,2]
[356401460,1742407832166,-150.0,0.00027953,2]
[356401461,1742407832176,-232.92,0.0002868,2]
[356401462,1742407832186,-161.5,0.00028684,120]
[356401463,1742407832196,-168.9,0.0002869,2]
[356401464,1742407832206,-250.0,0.00028693,2]
[356401465,1742407832216,-300.0,0.00028769,2]
[356401466,1742407832226,-12787.56,0.0002877,2]
[356401467,1742407832236,-244.95,0.00028772,2]
[356401468,1742407832246,-1000.0,0.00028787,2]
[356401469,1742407832257,-153.93,0.00028799,2]
[356401470,1742407832267,-577.44,0.00029078,2]
[356401471,1742407832278,-193.8131344,0.000291,4]
[356401472,1742407832288,-153.93,0.00029159,2]
[356401473,1742407832298,-153.93,0.00029519,2]
[356401474,1742407832307,-150.0,0.00029534,2]
[356401475,1742407832317,-347.61180889,0.00029598,2]
[356401476,1742407832347,-1147.38819111,0.00029598,2]
[356401477,1742407832358,-1290.09,0.000296,2]
[356401478,1742407832367,-168.83,0.00029643,2]
[356401479,1742407832377,-150.0,0.00029699,2]
[356401480,1742407832386,-150.0,0.0002971,2]
[356401481,1742407832396,-150.0,0.0002971,2]
[356401482,1742407832407,-150.0,0.00029718,2]
[356401484,1742407832417,-150.0,0.00029721,2]
[356401486,1742407832427,-150.0,0.00029723,2]
[356401488,1742407832437,-315.106,0.00029732,23]
[356401489,1742407832446,-150.0,0.00029735,2]
[356401490,1742407832456,-150.0,0.00029744,2]
[356401491,1742407832466,-150.0,0.00029745,2]
[356401493,1742407832475,-150.0,0.00029747,2]
[356401495,1742407832484,-150.0,0.00029751,2]
[356401497,1742407832493,-150.0,0.00029755,2]
[356401499,1742407832503,-150.0,0.00029755,2]
[356401501,1742407832512,-150.0,0.00029766,2]
[356401503,1742407832522,-500.0,0.00029767,2]
[356401505,1742407832533,-609.86,0.00029767,2]
[356401508,1742407832543,-527.24253703,0.00029767,2]
[356401511,1742407832553,-500.0,0.00029767,2]
[356401514,1742407832562,-532.75232495,0.00029767,2]
[356401518,1742407832571,-500.0,0.00029767,2]
[356401521,1742407832582,-150.0,0.00029768,2]
[356401545,1742407832591,-150.0,0.0002977,2]
[356401548,1742407832836,-150.0,0.0002977,2]
[356401549,1742407832847,-500.0,0.00029777,2]
[356401550,1742407832857,-539.16,0.00029777,2]
[356401551,1742407832867,-500.0,0.00029777,2]
[356401552,1742407832878,-500.0,0.00029777,2]
[356401553,1742407832888,-500.0,0.00029777,2]
[356401554,1742407832901,-793.44,0.00029777,2]
[356401555,1742407832911,-500.0,0.00029777,2]
[356401556,1742407832922,-549.04,0.00029777,2]
[356401557,1742407832931,-627.50580613,0.00029777,2]
[356401558,1742407832942,-382.53933106,0.00029777,2]
[356401559,1742407832952,-831.2,0.00029777,2]
[356401560,1742407832962,-521.92038748,0.00029777,2]
[356401561,1742407832971,-193.20144011,0.00029777,2]
[356401563,1742407832985,-413.53855989,0.00029777,2]
[356401566,1742407832995,-500.0,0.00029777,2]
[356401567,1742407833005,-500.0,0.00029777,2]
[356401569,1742407833014,-1212.41,0.00029777,2]
[356401571,1742407833026,-500.0,0.00029777,2]
[356401573,1742407833036,-500.0,0.00029777,2]
[356401576,1742407833046,-500.0,0.00029777,2]
[356401578,1742407833056,-917.96,0.00029777,2]
[356401580,1742407833067,-323.53502284,0.00029777,2]
[356401582,1742407833080,-194.29491254,0.00029777,2]
[356401584,1742407833090,-1180.24,0.00029777,2]
[356401586,1742407833099,-579.86,0.00029777,2]
[356401588,1742407833109,-500.0,0.00029777,2]
[356401590,1742407833119,-500.0,0.00029777,2]
[356401591,1742407833130,-512.25293139,0.00029777,2]
[356401593,1742407833140,-516.31683309,0.00029777,2]
[356401595,1742407833149,-500.0,0.00029777,2]
[356401597,1742407833159,-575.59,0.00029777,2]
[356401599,1742407833170,-663.96,0.00029777,2]
[356401601,1742407833180,-690.08,0.00029777,2]
[356401603,1742407833190,-526.97,0.00029777,2]
[356401606,1742407833201,-923.72,0.00029777,2]
[356401607,1742407833211,-500.0,0.00029777,2]
[356401609,1742407833221,-500.0,0.00029777,2]
[356401611,1742407833232,-500.0,0.00029777,2]
[356401614,1742407833242,-500.0,0.00029777,2]
[356401616,1742407833252,-505.62,0.00029777,2]
[356401618,1742407833262,-919.51838005,0.00029777,2]
[356401620,1742407833282,-452.42161995,0.00029777,2]
[356401622,1742407833292,-500.0,0.00029777,2]
[356401624,1742407833303,-500.0,0.00029777,2]
[356401626,1742407833315,-230.93161776,0.0002978,2]
[356401628,1742407833326,-1030.0654668,0.0002978,2]
[356401721,1742407838032,-8065.01790578,0.0002978,2]
[356401722,1742407838088,-488.39800677,0.0002978,2]
[356401723,1742407838101,-815.97000003,0.0002978,2]
[356401724,1742407838113,-1704.1326,0.0002978,2]
[356401725,1742407838184,-1771.25319966,0.0002978,2]
[356401726,1742407838200,-298.12625187,0.0002978,2]
[356401727,1742407838212,-804.33070691,0.0002978,2]
[356401728,1742407838258,-281.79260162,0.0002978,2]
[356401729,1742407838270,-2587.42803,0.0002978,2]
[356401730,1742407838283,-4442.40000004,0.0002978,2]
[356401731,1742407838294,-5049.795,0.0002978,2]
[356401732,1742407838306,-2499.198,0.0002978,2]
[356401734,1742407838317,-445.55,0.0002978,2]
[356401743,1742407840161,-4277.02173052,0.0002978,2]
[356401744,1742407840171,-305.3513,0.0002978,2]
[356401745,1742407840181,-264.85471255,0.00029781,2]
[356401746,1742407840192,-264.85471253,0.00029783,2]
[356401747,1742407840202,-264.85471253,0.00029785,2]
[356401748,1742407840212,-446.15933473,0.00029787,2]
[356401749,1742407840222,-264.85471253,0.00029787,2]
[356401750,1742407840232,-169.5527517,0.00029789,2]
[356401751,1742407840242,-684.19548722,0.00029789,2]
[356401752,1742407840252,-810.7984,0.00029789,2]
[356401753,1742407840263,-5000.0,0.00029789,2]
[356401754,1742407840273,-3867.8186,0.0002979,2]
[356401755,1742407840285,-150.0,0.00029791,2]
[356401756,1742407840295,-150.0,0.00029792,2]
[356401757,1742407840304,-280.12717057,0.000298,2]
[356401758,1742407840314,-170.61676571,0.000298,2]
[356401759,1742407840324,-2014.57,0.000298,2]
[356401760,1742407840332,-150.0,0.000298,2]
[356401761,1742407840342,-150.0,0.000298,2]
[356401762,1742407840355,-500.75407242,0.000298,2]
[356401763,1742407840365,-150.0,0.00029802,2]
[356401764,1742407840375,-150.0,0.00029803,2]
[356401765,1742407840385,-150.0,0.0002981,2]
[356401766,1742407840395,-150.0,0.00029811,2]
[356401767,1742407840404,-150.0,0.00029811,2]
[356401768,1742407840414,-150.0,0.00029812,2]
[356401769,1742407840423,-150.0,0.00029812,2]
[356401770,1742407840433,-150.0,0.00029813,2]
[356401771,1742407840442,-150.0,0.00029824,2]
[356401772,1742407840452,-150.0,0.00029826,2]
[356401773,1742407840462,-150.0,0.00029827,2]
[356401774,1742407840472,-150.0,0.00029828,2]
[356401775,1742407840482,-150.0,0.00029842,2]
[356401776,1742407840491,-150.0,0.00029847,2]
[356401777,1742407840501,-150.0,0.00029853,2]
[356401778,1742407840510,-150.0,0.00029857,2]
[356401779,1742407840520,-150.0,0.00029858,2]
[356401780,1742407840530,-150.0,0.00029858,2]
[356401781,1742407840542,-150.0,0.0002986,2]
[356401782,1742407840552,-7220.0,0.00029863,2]
[356401783,1742407840562,-150.0,0.00029865,2]
[356401784,1742407840572,-168.48532,0.00029868,45]
[356401785,1742407840582,-150.0,0.00029875,2]
[356401786,1742407840591,-500.0,0.00029878,2]
[356401787,1742407840601,-222.63733837,0.00029878,2]
[356401788,1742407840611,-159.03520252,0.00029878,2]
[356401789,1742407840621,-419.56980694,0.00029878,2]
[356401790,1742407840631,-500.0,0.00029878,2]
[356401791,1742407840640,-153.93,0.00029879,2]
[356401792,1742407840650,-11113.28410976,0.00029879,3]
[356401794,1742407840678,-1157.65390319,0.00029879,3]
[356401795,1742407840747,-2311.74980086,0.00029879,3]
[356401797,1742407840763,-938.42591509,0.00029879,3]
[356401799,1742407840779,-117610.0096691,0.00029879,3]
[356401800,1742407840793,-133131.123398,0.0002988,3]
[356401801,1742407840803,-150.0,0.00029881,2]
[356401802,1742407840813,-150.0,0.00029884,2]
[356401803,1742407840823,-41744.66390248,0.00029889,12]
[356401804,1742407840833,-1393.058902,0.00029889,2]
[356401805,1742407840843,-156.956242,0.00029889,2]
[356401806,1742407840852,-151.886926,0.00029889,2]
[356401807,1742407840862,-1698.98748,0.00029889,2]
[356401808,1742407840872,-500.0,0.00029889,2]
[356401809,1742407840881,-171.20333321,0.00029889,2]
[356401810,1742407840891,-744.29,0.00029889,2]
[356401811,1742407840901,-608.1422501,0.00029889,2]
[356401812,1742407840914,-500.0,0.00029889,2]
[356401813,1742407840923,-634.38,0.00029889,2]
[356401814,1742407840933,-540.21174109,0.00029889,2]
[356401815,1742407840943,-500.0,0.00029889,2]
[356401816,1742407840954,-513.36226856,0.00029889,2]
[356401817,1742407840964,-500.0,0.00029889,2]
[356401818,1742407840974,-500.0,0.00029889,2]
[356401819,1742407840984,-500.0,0.00029889,2]
[356401820,1742407840994,-500.0,0.00029889,2]
[356401821,1742407841003,-500.0,0.00029889,2]
[356401822,1742407841013,-500.0,0.00029889,2]
[356401823,1742407841022,-397.94510674,0.00029889,2]
[356401824,1742407841031,-500.0,0.00029889,2]
[356401825,1742407841043,-500.0,0.00029889,2]
[356401826,1742407841052,-500.0,0.00029889,2]
[356401827,1742407841062,-649.23,0.00029889,2]
[356401828,1742407841073,-500.0,0.00029889,2]
[356401829,1742407841083,-675.02,0.00029889,2]
[356401830,1742407841092,-635.08,0.00029889,2]
[356401831,1742407841101,-500.0,0.00029889,2]
[356401832,1742407841111,-307.80821148,0.00029889,2]
[356401833,1742407841121,-500.0,0.00029889,2]
[356401834,1742407841131,-500.0,0.00029889,2]
[356401835,1742407841142,-688.55,0.00029889,2]
[356401836,1742407841152,-500.0,0.00029889,2]
[356401837,1742407841162,-500.0,0.00029889,2]
[356401838,1742407841171,-500.0,0.00029889,2]
[356401839,1742407841181,-500.0,0.00029889,2]
[356401840,1742407841190,-1265.02,0.00029889,2]
[356401841,1742407841199,-500.0,0.00029889,2]
[356401842,1742407841208,-500.0,0.00029889,2]
[356401843,1742407841218,-337.67234061,0.00029889,2]
[356401844,1742407841228,-500.0,0.00029889,2]
[356401845,1742407841237,-500.0,0.00029889,2]
[356401846,1742407841248,-500.0,0.00029889,2]
[356401847,1742407841257,-455.60560489,0.00029889,2]
[356401848,1742407841267,-862.3,0.00029889,2]
[356401849,1742407841276,-500.0,0.00029889,2]
[356401850,1742407841288,-500.0,0.00029889,2]
[356401851,1742407841298,-500.0,0.00029889,2]
[356401852,1742407841307,-526.71798054,0.00029889,2]
[356401853,1742407841317,-500.0,0.00029889,2]
[356401854,1742407841326,-509.79154727,0.00029889,2]
[356401855,1742407841336,-500.0,0.00029889,2]
[356401856,1742407841348,-500.0,0.00029889,2]
[356401857,1742407841358,-500.0,0.00029889,2]
[356401858,1742407841368,-500.0,0.00029889,2]
[356401859,1742407841377,-300.98103262,0.00029889,2]
[356401860,1742407841387,-500.0,0.00029889,2]
[356401861,1742407841396,-500.0,0.00029889,2]
[356401862,1742407841406,-500.0,0.00029889,2]
[356401863,1742407841415,-500.0,0.00029889,2]
[356401864,1742407841425,-500.0,0.00029889,2]
[356401865,1742407841435,-500.0,0.00029889,2]
[356401866,1742407841444,-500.0,0.00029889,2]
[356401867,1742407841454,-500.0,0.00029889,2]
[356401868,1742407841463,-825.01,0.00029889,2]
[356401869,1742407841473,-500.0,0.00029889,2]
[356401870,1742407841483,-500.0,0.00029889,2]
[356401871,1742407841493,-500.0,0.00029889,2]
[356401872,1742407841503,-554.54,0.00029889,2]
[356401873,1742407841513,-500.0,0.00029889,2]
[356401874,1742407841523,-500.0,0.00029889,2]
[356401875,1742407841534,-500.0,0.00029889,2]
[356401876,1742407841544,-511.78569908,0.00029889,2]
[356401877,1742407841554,-500.0,0.00029889,2]
[356401878,1742407841565,-500.0,0.00029889,2]
[356401879,1742407841575,-500.0,0.00029889,2]
[356401880,1742407841585,-1100.55,0.00029889,2]
[356401881,1742407841595,-500.0,0.00029889,2]
[356401882,1742407841604,-500.0,0.00029889,2]
[356401883,1742407841614,-500.0,0.00029889,2]
[356401884,1742407841624,-500.0,0.00029889,2]
[356401885,1742407841634,-500.0,0.00029889,2]
[356401886,1742407841644,-500.0,0.00029889,2]
[356401887,1742407841654,-500.0,0.00029889,2]
[356401888,1742407841664,-1711.9,0.00029889,2]
[356401889,1742407841674,-500.0,0.00029889,2]
[356401890,1742407841684,-500.0,0.00029889,2]
[356401891,1742407841694,-506.57164017,0.00029889,2]
[356401892,1742407841704,-500.0,0.00029889,2]
[356401893,1742407841723,-500.0,0.00029889,2]
[356401894,1742407841734,-500.0,0.00029889,2]
[356401895,1742407841746,-500.0,0.00029889,2]
[356401896,1742407841756,-500.0,0.00029889,2]
[356401897,1742407841765,-500.0,0.00029889,2]
[356401898,1742407841775,-500.0,0.00029889,2]
[356401899,1742407841785,-500.0,0.00029889,2]
[356401900,1742407841796,-500.0,0.00029889,2]
[356401901,1742407841806,-833.95,0.00029889,2]
[356401902,1742407841817,-563.59,0.00029889,2]
[356401903,1742407841827,-500.0,0.00029889,2]
[356401904,1742407841838,-500.0,0.00029889,2]
[356401905,1742407841848,-500.0,0.00029889,2]
[356401906,1742407841858,-500.0,0.00029889,2]
[356401907,1742407841868,-500.0,0.00029889,2]
[356401908,1742407841878,-500.0,0.00029889,2]
[356401909,1742407841888,-500.0,0.00029889,2]
[356401910,1742407841898,-500.0,0.00029889,2]
[356401911,1742407841910,-546.68224631,0.00029889,2]
[356401912,1742407841922,-2361.23,0.00029889,2]
[356401913,1742407841932,-500.0,0.00029889,2]
[356401914,1742407841943,-559.16,0.00029889,2]
[356401915,1742407841954,-267.12158155,0.00029889,2]
[356401916,1742407841965,-500.0,0.00029889,2]
[356401917,1742407841976,-500.0,0.00029889,2]
[356401918,1742407841988,-926.52,0.00029889,2]
[356401919,1742407841998,-500.0,0.00029889,2]
[356401920,1742407842009,-500.0,0.00029889,2]
[356401921,1742407842019,-529.27911311,0.00029889,2]
[356401922,1742407842030,-500.0,0.00029889,2]
[356401923,1742407842042,-500.0,0.00029889,2]
[356401924,1742407842052,-500.0,0.00029889,2]
[356401925,1742407842061,-500.0,0.00029889,2]
[356401926,1742407842071,-500.0,0.00029889,2]
[356401927,1742407842080,-500.0,0.00029889,2]
[356401928,1742407842090,-770.53,0.00029889,2]
[356401929,1742407842100,-563.07,0.00029889,2]
[356401930,1742407842111,-500.0,0.00029889,2]
[356401931,1742407842122,-500.0,0.00029889,2]
[356401932,1742407842134,-500.0,0.00029889,2]
[356401933,1742407842144,-382.44653689,0.00029889,2]
[356401935,1742407842832,-117.55346311,0.00029889,2]
[356401936,1742407842842,-500.0,0.00029889,2]
[356401937,1742407842852,-500.0,0.00029889,2]
[356401938,1742407842861,-724.25,0.00029889,2]
[356401939,1742407842871,-85.3690286,0.00029889,2]
[356401942,1742407842891,-414.6309714,0.00029889,2]
[356401943,1742407842901,-273.75636267,0.00029889,2]
[356401967,1742407844177,-264.85471253,0.00029789,2]
[356401968,1742407844187,-226.24363733,0.00029889,2]
[356401969,1742407844196,-821.09,0.00029889,2]
[356401970,1742407844206,-392.20148992,0.00029889,2]
[356401971,1742407844215,-873.29,0.00029889,2]